[Event "3rd Perez Open 2024"]
[Site "Santa Fe"]
[Date "2024.02.23"]
[Round "3.2"]
[White "Flores, Diego"]
[Black "Mavrich, Demian"]
[Result "1-0"]
[ECO "A30"]
[WhiteElo "2526"]
[BlackElo "2251"]
[Annotator "TA"]
[PlyCount "81"]
[EventDate "2024.02.18"]
[EventType "swiss"]
[EventCountry "ARG"]
[SourceTitle "playchess.com"]
[Source "ChessBase"]
[SourceQuality "1"]
[TimeControl "5400+30"]

{[%evp 9,81,-2,15,16,9,-12,-12,-31,-22,-34,-30,-32,-26,-39,-32,-52,-37,-71,-62,-79,-73,-91,-65,-77,-56,-68,-37,-84,-24,-54,-60,-100,-50,-59,-5,0,-5,-24,-21,-66,0,-58,-54,-49,-64,-127,-82,-89,-59,-68,-64,-66,0,0,109,120,556,595,569,557,593,601,545,507,520,392,440,422,972,954,1212,1192,29997,29998]} 1. c4 {[%emt 0:01:04]} c5 {[%emt 0:00:12]} 2. b3 {[%emt 0:00:35]} Nc6 {[%emt 0:00:34]} 3. Bb2 {[%emt 0:00:09]} e5 {[%emt 0:00:21]} 4. d3 {[%emt 0:04:40]} Nf6 {[%emt 0:01:17]} 5. Nf3 {[%emt 0:03:42]} d6 {[%emt 0:00:51]} 6. e3 {[%emt 0:02:30]} g6 {[%emt 0:01:47]} 7. Be2 {[%emt 0:00:17]} Bg7 {[%emt 0:00:15]} 8. Nbd2 {[%emt 0:00:45] The position is equal.} O-O {[%emt 0:01:57]} 9. O-O {[%emt 0:02:00]} Ne8 {[%emt 0:03:10][%cal Oe5e4]} 10. Rb1 {[%emt 1:19:48]} f5 {[%emt 0:00:50]} 11. a3 {[%emt 0:00:00][%cal Ob3b4]} a5 {[%emt 0:00:17]} 12. Qc2 {[%emt 0:00:00]} g5 {[%emt 0:06:07]} 13. Bc3 {[%emt 0:00:00]} g4 {[%emt 0:05:21]} 14. Ne1 {[%emt 0:00:00]} h5 {[%emt 0:14:16]} 15. b4 {[%emt 0:00:00]} axb4 {[%emt 0:01:50]} 16. axb4 {[%emt 0:00:00]} b6 {[%emt 0:04:57]} 17. g3 {[%emt 0:00:00]} h4 {[%emt 0:06:55]} 18. Qd1 {[%emt 0:00:00]} (18. Ng2 $15) 18... Qg5 {[%emt 0:08:46]} (18... cxb4 $17 19. Bxb4 Nxb4 20. Rxb4 Bh6) 19. bxc5 {[%emt 0:00:00]} bxc5 {[%emt 0:00:15]} 20. Rb6 {[%emt 0:00:00]} Bd7 {[%emt 0:04:27]} (20... hxg3 $17 {Strongly threatening ...Qd8.} 21. hxg3 Nd8) 21. Ng2 {[%emt 0:00:00]} h3 {[%emt 0:02:34]} (21... hxg3 $15 22. hxg3 Nf6) 22. Nh4 $11 {[%emt 0:00:00]} Nf6 {[%emt 0:10:41]} 23. Rb7 {[%emt 0:00:00]} Be6 {[%emt 0:03:06]} 24. Qb1 {[%emt 0:00:00]} Ne8 {[%emt 0:10:34]} (24... Nd7 $15) 25. Re1 {[%emt 0:00:00]} (25. Rb6 $11 Bd7 26. Rb7) 25... Bf6 $1 $15 {[%emt 0:01:47]} 26. Rb6 {[%emt 0:00:00]} Bd7 {[%emt 0:02:28]} 27. f4 {[%emt 0:00:53]} (27. Rb7 $15 Rf7 28. e4) 27... Qh5 {[%emt 0:04:23]} 28. fxe5 {[%emt 0:00:43]} Bxh4 {[%emt 0:00:20]} 29. e6 {[%emt 0:00:36]} Bxe6 {[%emt 0:01:25][%cal Oh4g5] Hoping for ...Bg5!} 30. Rxc6 {[%emt 0:01:42]} Bd8 {[%emt 0:01:15]} (30... Bg5 $15 31. Bd1 Qh6) 31. Qb7 $1 $11 {[%emt 0:01:13]} Ra2 {[%emt 0:00:34] [#]} (31... Qg5 $11 {keeps the balance.} 32. Qxa8 Qxe3+ 33. Kh1 Bf6 34. Bxf6 Qxd2) 32. Rxd6 $1 $16 {[%emt 0:01:20]} Rf7 $2 {[%emt 0:01:06][%mdl 8192] This move loses the game for Black.} (32... Bf6 $16 33. Bxf6 (33. Rxe6 Bxc3 34. Qb3 Ng7 $17) 33... Rxf6) 33. Qb8 $18 {[%emt 0:00:52]} Nxd6 {[%emt 0:01:37]} 34. Qxd8+ {[%emt 0:00:05]} Rf8 {[%emt 0:00:23]} 35. Qxd6 {[%emt 0:00:10]} Qh6 {[%emt 0:00:32]} 36. Qe5 {[%emt 0:02:29]} Re8 {[%emt 0:00:31]} 37. Nf1 {[%emt 0:01:10]} Bd7 {[%emt 0:00:39]} 38. Qxc5 {[%emt 0:00:27]} f4 {[%emt 0:00:37]} (38... Qc6 $142 39. Qxc6 Bxc6) 39. gxf4 {[%emt 0:00:27]} Bc6 {[%emt 0:00:20]} 40. Ng3 {[%emt 0:00:23]} (40. Bxg4 Rg2+ 41. Kh1 Rxg4+ 42. e4 Qxf4 $15) 40... Qe6 {[%emt 0:00:32]} 41. Qg5+ {[%emt 0:00:09] Weighted Error Value: White=0.28 (precise) /Black=0.55.  Loses game:     	---       	Black=1      Mistake:       	White=3     	Black=7      Inaccurate:     	White=4     	Black=3      OK:         	White=8     	Black=8      Best:        	White=2     	Black=1      Strong:       	White=2     	Black=1} 1-0

[Event "3rd Perez Open 2024"]
[Site "Santa Fe"]
[Date "2024.02.23"]
[Round "3.3"]
[White "Rodriguez Vila, Andres"]
[Black "Sanhueza, Cristian"]
[Result "1/2-1/2"]
[ECO "A04"]
[WhiteElo "2407"]
[BlackElo "2222"]
[Annotator "TA"]
[PlyCount "89"]
[EventDate "2024.02.18"]
[EventType "swiss"]
[EventCountry "ARG"]
[SourceTitle "playchess.com"]
[Source "ChessBase"]
[SourceQuality "1"]
[TimeControl "5400+30"]

{[%evp 17,89,0,0,0,35,32,35,35,36,0,0,23,20,8,22,22,34,16,58,62,72,4,3,0,0,0,0,0,0,0,0,0,7,20,7,9,70,75,68,68,101,123,123,123,123,120,120,82,82,82,82,82,82,82,82,82,155,47,130,0,0,0,0,0,8,0,0,0,0,0,0,0,0,0]} 1. e4 {[%emt 0:00:03]} c5 {[%emt 0:03:05]} 2. Nf3 {[%emt 0:00:08]} d6 {[%emt 0:00:14]} 3. g3 {[%emt 0:02:32]} g6 {[%emt 0:01:40]} 4. Bg2 {[%emt 0:00:08]} Bg7 {[%emt 0:00:05]} 5. O-O {[%emt 0:00:06]} Nc6 {[%emt 0:04:46]} 6. c3 {[%emt 0:00:09]} e5 {[%emt 0:04:06]} 7. a3 {[%emt 0:02:39]} Nge7 {[%emt 0:05:19]} 8. b4 {[%emt 0:01:01]} O-O {[%emt 0:00:31]} 9. d3 {[%emt 0:01:17][%cal Bd2d3,Bd3d4][%mdl 32]} a6 {[%emt 0:16:17]} 10. Be3 {[%emt 0:00:14]} cxb4 {[%emt 0:06:23]} 11. axb4 {[%emt 0:00:09]} Bg4 {[%emt 0:03:26]} 12. h3 {[%emt 0:07:07] White is slightly better.} Be6 {[%emt 0:04:22]} 13. d4 {[%emt 0:04:40] And now d5 would win.} d5 {[%emt 0:14:08]} 14. Nxe5 {[%emt 0:02:12]} Nxe5 {[%emt 0:03:23]} 15. dxe5 {[%emt 0:00:07]} dxe4 {[%emt 0:00:35]} 16. Bc5 {[%emt 0:03:02] Hoping for Qxd8.} Re8 {[%emt 0:01:42]} 17. Nd2 {[%emt 0:02:14]} Bxe5 {[%emt 0:04:17] Strongly threatening ...f5.} 18. Nxe4 {[%emt 0:00:06]} (18. Bxe4 Qc7 (18... Bxh3 19. Nc4 $15) (18... Bxc3 19. Bxb7 Bxd2 20. Bxa8 $17) 19. Bg2 Rad8 $17 (19... Bxc3 20. Rc1 $15)) 18... Nd5 {[%emt 0:02:20] [#]} 19. c4 {[%emt 0:06:54]} Nf6 $1 $11 {[%emt 0:05:33]} 20. Qxd8 {[%emt 0:04:53]} Raxd8 {[%emt 0:00:39]} 21. Nxf6+ {[%emt 0:00:04]} Bxf6 {[%emt 0:00:10]} 22. Rac1 $36 {[%emt 0:00:19][%mdl 2048] White has the initiative.} Rd7 {[%emt 0:09:19]} 23. Rfe1 {[%emt 0:03:55]} Rc8 {[%emt 0:00:51][%cal Oa6a5]} 24. Rcd1 {[%emt 0:12:49] Rxd7 would now be deadly.} Rcd8 {[%emt 0:01:47]} 25. Rxd7 {[%emt 0:00:05]} Rxd7 {[%emt 0:01:03]} 26. Bd5 {[%emt 0:00:08]} Kg7 {[%emt 0:06:00]} ({Stronger than} 26... Bxh3 27. Re8+ Kg7 28. Bf8+ Kh8 29. Bh6#) (26... Be7 $1 $11) 27. Bxe6 $14 {[%emt 0:00:09]} fxe6 {[%emt 0:00:07]} 28. Rxe6 {[%emt 0:00:10]} Bd4 {[%emt 0:01:20]} 29. Bxd4+ {[%emt 0:02:27]} Rxd4 $16 {[%emt 0:00:02][%mdl 4096] Endgame. KR-KR} 30. Re7+ {[%emt 0:00:05]} Kg8 {[%emt 0:01:13]} 31. Rxb7 {[%emt 0:02:25]} Rxc4 {[%emt 0:00:02]} 32. Kg2 {[%emt 0:00:10]} Rc3 {[%emt 0:00:29]} 33. h4 {[%emt 0:01:25]} Rb3 {[%emt 0:00:32]} 34. Rb6 {[%emt 0:01:25][%cal Og2h3]} Kg7 {[%emt 0:00:12]} 35. g4 {[%emt 0:00:06]} ({But not} 35. Rxa6 Rxb4 36. Ra7+ Kg8 $14) 35... h6 {[%emt 0:00:45]} 36. Rb7+ {[%emt 0:04:25]} ({Much weaker is} 36. Rxa6 Rxb4 37. Kg3 Rb5 $11) 36... Kf6 {[%emt 0:00:13] [#]} (36... Kf8 $142) 37. f4 {[%emt 0:00:12]} (37. f3 $1 $16) 37... Ra3 {[%emt 0:00:34] [#]} (37... h5 $14) 38. g5+ {[%emt 0:01:12]} (38. Rh7 $1 $16 {[%cal Rh7h6]}) 38... hxg5 $11 {[%emt 0:00:08] The position is equal.} 39. fxg5+ {[%emt 0:03:17]} Kf5 {[%emt 0:00:24]} 40. Rc7 {[%emt 0:00:06]} Rb3 {[%emt 0:01:05]} 41. Rc5+ {[%emt 0:00:18]} Kg4 {[%emt 0:01:01]} 42. Rc4+ {[%emt 0:00:05]} Kh5 {[%emt 0:00:16]} 43. Rd4 {[%emt 0:00:45]} Ra3 {[%emt 0:00:54]} 44. Rf4 {[%emt 0:02:19]} a5 {[%emt 0:00:23]} 45. bxa5 {[%emt 0:00:36] Weighted Error Value: White=0.14 (very precise) /Black=0.12 (very precise) .  Mistake:       	White=3     	Black=3      Inaccurate:     	White=1     	Black=3      OK:         	White=14    	Black=13     Best:        	White=2     	---        Strong:       	---       	Black=1} 1/2-1/2

[Event "3rd Perez Open 2024"]
[Site "Santa Fe"]
[Date "2024.02.23"]
[Round "3.4"]
[White "Borda Rodas, Anapaola S."]
[Black "Villca, Julian"]
[Result "0-1"]
[ECO "B12"]
[WhiteElo "2241"]
[BlackElo "2411"]
[Annotator "TA"]
[PlyCount "58"]
[EventDate "2024.02.18"]
[EventType "swiss"]
[EventCountry "ARG"]
[SourceTitle "playchess.com"]
[Source "ChessBase"]
[SourceQuality "1"]
[TimeControl "5400+30"]

{[%evp 19,58,81,50,-80,-26,-36,5,0,23,-19,-28,-95,-75,-87,-72,-163,-137,-229,-226,-432,-235,-242,-231,-243,-234,-222,-235,-429,-240,-245,-218,-220,-210,-259,-262,-252,-261,-452,-439,-704,-689]} 1. e4 {[%emt 0:00:03]} c6 {[%emt 0:05:44]} 2. d4 {[%emt 0:02:08]} d5 {[%emt 0:00:06]} 3. e5 {[%emt 0:00:18]} Bf5 {[%emt 0:00:05]} 4. Nc3 {[%emt 0:00:06]} e6 {[%emt 0:03:39]} 5. g4 {[%emt 0:00:32]} Bg6 {[%emt 0:00:09]} 6. Nge2 {[%emt 0:00:30]} c5 {[%emt 0:05:28]} 7. h4 {[%emt 0:00:24]} cxd4 {[%emt 0:03:11]} 8. Nxd4 {[%emt 0:02:09]} h5 {[%emt 0:15:17]} 9. Bb5+ {[%emt 0:25:27]} Nd7 {[%emt 0:00:39]} 10. f4 {[%emt 0:00:26]} hxg4 {[%emt 0:12:01]} 11. Qxg4 {[%emt 0:03:10]} (11. f5 $1 $14 {is the one way to stay ahead.} Rxh4 (11... Bxf5 12. Nxf5 a6 13. Nd6+ Bxd6 14. Bxd7+ Qxd7 15. exd6 $16) 12. Rf1 exf5 13. e6 fxe6 14. Nxe6) 11... Nh6 {[%emt 0:02:10]} ({Black should play} 11... Ne7 $17) 12. Qg1 $11 {[%emt 0:11:50][%cal Od4e6]} Bf5 {[%emt 0:04:12]} (12... Nf5 $2 13. Nxe6 Qa5 14. Bd2 $18) 13. Be3 {[%emt 0:07:33] The position is equal.} a6 {[%emt 0:00:34]} 14. Be2 {[%emt 0:03:59]} Rc8 {[%emt 0:01:50]} 15. a4 {[%emt 0:16:10]} (15. O-O-O $11) 15... Qa5 {[%emt 0:07:22]} 16. Bd2 {[%emt 0:03:10]} Qc7 {[%emt 0:04:59]} 17. Qg5 {[%emt 0:04:22]} (17. O-O-O $17 {was necessary.}) 17... Qb6 {[%emt 0:06:26][%csl LRb2,LRd4]} 18. Nxf5 {[%emt 0:09:44]} (18. Qg1 $17) 18... Nxf5 $19 {[%emt 0:01:05]} 19. O-O-O {[%emt 0:03:02] [#]} (19. Bd3 Be7 (19... Qxb2 20. Rb1 $17) 20. Qg2) 19... Rxc3 {[%emt 0:04:45]} 20. Bxc3 {[%emt 0:00:57]} Qe3+ {[%emt 0:00:08]} 21. Rd2 {[%emt 0:04:11]} d4 {[%emt 0:01:58]} 22. Ba5 {[%emt 0:00:37][%csl Ga5][%cal Rg5d8]} b6 {[%emt 0:00:10]} 23. Qg1 $2 {[%emt 0:00:34] [#]} (23. Qg2 bxa5 24. Qb7) 23... Qxg1+ {[%emt 0:00:33]} (23... bxa5 24. Qxe3 dxe3 25. Rdd1 $19) (23... Qxf4 24. Bxa6 bxa5 25. Bb5 $19) (23... Rxh4 $142 24. Qg2 Rxh1+ (24... bxa5 $2 25. Rxh4 Nxh4 26. Qa8+ Ke7 27. Qxa6 $19) 25. Qxh1 bxa5 26. Qa8+ Ke7 27. Qxa6 g6 (27... Qxf4 $2 28. Qxa5 Qxe5 29. Qxe5 $19) 28. Qxa5 Bh6 (28... Qxf4 $2 29. Bb5 $19)) 24. Rxg1 {[%emt 0:00:05]} bxa5 {[%emt 0:00:05]} 25. h5 {[%emt 0:00:48]} Nc5 {[%emt 0:00:47]} 26. Bg4 {[%emt 0:00:22]} Nxa4 {[%emt 0:02:17]} 27. Bxf5 {[%emt 0:00:10]} exf5 {[%emt 0:00:04]} 28. Rg5 {[%emt 0:00:07]} (28. Rxd4 $2 {perishes.} Bc5 29. Rgd1 Bxd4 30. Rxd4 Nc5 $19) (28. Rgd1 Nc5 (28... Rxh5 29. Rxd4 Nc5 30. Rd8+ Ke7 31. Rc8 $11) 29. Rxd4) 28... Nc5 {[%emt 0:00:28] Strongly threatening ...Ne4.} 29. Rxd4 {[%emt 0:00:15]} (29. Rh2 $142) 29... Ne6 {[%emt 0:00:07][%csl LRd4,LRg5] Weighted Error Value: White=0.89/Black=0.40.  Mistake:       	White=7     	Black=3      Inaccurate:     	White=1     	Black=1      OK:         	White=5     	Black=4      Best:        	White=2     	Black=4} 0-1

[Event "3rd Perez Open 2024"]
[Site "Santa Fe"]
[Date "2024.02.23"]
[Round "3.5"]
[White "Spata, German"]
[Black "Carrizo, Luciano Ariel"]
[Result "1-0"]
[ECO "A20"]
[WhiteElo "2399"]
[BlackElo "2170"]
[Annotator "TA"]
[PlyCount "67"]
[EventDate "2024.02.18"]
[EventType "swiss"]
[EventCountry "ARG"]
[SourceTitle "playchess.com"]
[Source "ChessBase"]
[SourceQuality "1"]
[TimeControl "5400+30"]

{[%evp 9,67,28,42,35,58,41,64,63,58,56,75,62,58,67,73,56,75,76,103,84,106,102,92,89,106,102,152,152,381,412,536,343,444,436,504,510,505,510,564,550,557,561,554,549,584,591,590,570,648,634,675,671,623,453,29975,29976,29992,29993,29995,29996]} 1. c4 {[%emt 0:00:30]} e5 {[%emt 0:13:04]} 2. g3 {[%emt 0:01:27]} c6 {[%emt 0:00:33]} 3. Nf3 {[%emt 0:02:20]} e4 {[%emt 0:01:46]} 4. Nd4 {[%emt 0:00:06]} Bc5 {[%emt 0:03:08]} 5. Nb3 {[%emt 0:00:56]} Be7 {[%emt 0:01:14]} 6. Bg2 {[%emt 0:00:28][%cal Ob1c3]} Nf6 {[%emt 0:19:00]} 7. Nc3 {[%emt 0:01:48]} d5 {[%emt 0:00:59]} 8. cxd5 {[%emt 0:00:18] White is slightly better.} cxd5 {[%emt 0:00:02]} 9. d3 {[%emt 0:02:52]} exd3 {[%emt 0:05:44]} 10. Qxd3 {[%emt 0:00:27][%cal Oe1g1]} Be6 {[%emt 0:00:05]} 11. O-O {[%emt 0:03:54]} Nc6 {[%emt 0:01:33]} 12. Bg5 {[%emt 0:03:02]} O-O {[%emt 0:07:25]} 13. Rfd1 {[%emt 0:03:35] White is much more active.} h6 {[%emt 0:17:54]} 14. Bxf6 {[%emt 0:01:00]} Bxf6 {[%emt 0:00:06]} 15. Nxd5 {[%emt 0:02:38]} Bxb2 {[%emt 0:04:04]} 16. Rab1 {[%emt 0:00:16][%cal Ba1b1,Bb1b2,Bb2d2][%mdl 32]} Bxd5 {[%emt 0:05:41]} 17. Bxd5 {[%emt 0:04:40]} (17. Qxd5 {simplifies} Qxd5 18. Rxd5 Bf6 19. Rb5) 17... Qf6 {[%emt 0:00:05] [#]} (17... Bf6 $142) 18. Nc5 $1 $16 {[%emt 0:20:50][%cal Oc5d7] Hoping for Nd7!} Rfe8 $2 {[%emt 0:12:35] A mistake that costs the game.} (18... Rad8 $16) 19. Ne4 $18 {[%emt 0:03:29]} (19. Nxb7 Nb4 20. Qb5 Nxd5 21. Rxd5 (21. Rxb2 $2 {perishes.} Nc3 $19) 21... Ba3 $16) 19... Qe5 {[%emt 0:01:26]} 20. Qb3 {[%emt 0:02:35]} Red8 {[%emt 0:02:23]} 21. Rxb2 {[%emt 0:02:19]} Nd4 {[%emt 0:01:17] [#]} 22. Rxd4 {[%emt 0:07:29]} Qxd4 {[%emt 0:00:01]} 23. Rd2 {[%emt 0:00:48]} Qe5 {[%emt 0:01:02]} 24. Bxf7+ {[%emt 0:03:41]} Kh7 {[%emt 0:00:43]} 25. Qb1 {[%emt 0:05:52] Threatening mate with Nf6+.} Kh8 {[%emt 0:00:00]} 26. Qxb7 {[%emt 0:02:22]} Rab8 {[%emt 0:00:31][%cal Ba8b8,Bb8d8,Bd8f8][%mdl 32] Strongly threatening ...Rxd2.} 27. Rxd8+ {[%emt 0:02:08]} ({Less strong is} 27. Qxa7 Qxe4 28. Bb3 Rdc8 $16) 27... Rxd8 {[%emt 0:00:30]} 28. Bb3 {[%emt 0:01:05]} a5 {[%emt 0:00:00]} 29. Kg2 {[%emt 0:05:55]} Qd4 {[%emt 0:00:31]} 30. Qc6 {[%emt 0:01:54]} Qe5 {[%emt 0:00:57]} 31. Qe6 {[%emt 0:01:25]} Qd4 {[%emt 0:00:30] [#]} (31... Qxe6 $18 32. Bxe6 g6) 32. Ng5 $1 {[%emt 0:03:17] White mates.} Rf8 {[%emt 0:00:11]} (32... Qf6 33. Qxf6) 33. Nf7+ {[%emt 0:00:51]} Kh7 {[%emt 0:00:40]} 34. Bc2+ {[%emt 0:00:37] Weighted Error Value: White=0.19 (very precise) /Black=0.64.  Loses game:     	---       	Black=1      Mistake:       	---       	Black=1      Inaccurate:     	White=1     	Black=2      OK:         	White=18    	Black=4} 1-0

[Event "3rd Perez Open 2024"]
[Site "Santa Fe"]
[Date "2024.02.23"]
[Round "3.6"]
[White "Amura, Claudia"]
[Black "Perez, Maximiliano"]
[Result "1-0"]
[ECO "A40"]
[WhiteElo "2196"]
[BlackElo "2383"]
[Annotator "TA"]
[PlyCount "75"]
[EventDate "2024.02.18"]
[EventType "swiss"]
[EventCountry "ARG"]
[SourceTitle "playchess.com"]
[Source "ChessBase"]
[SourceQuality "1"]
[TimeControl "5400+30"]

{[%evp 9,75,25,18,0,6,6,3,7,0,0,4,-7,-3,-38,-42,-51,-40,-31,-19,-22,-23,-54,-49,-74,-70,-69,-7,-33,-11,-69,0,0,0,0,6,12,30,25,70,0,0,0,9,10,7,0,0,0,0,-7,0,0,15,14,222,218,447,239,240,205,701,662,29983,29984,29983,1511,5318,2497]} 1. d4 {[%emt 0:00:05]} e6 {[%emt 0:00:20]} 2. Nf3 {[%emt 0:05:42]} b6 {[%emt 0:03:09]} 3. Bf4 {[%emt 0:02:08]} Nf6 {[%emt 0:02:00]} 4. h3 {[%emt 0:01:30]} Bd6 {[%emt 0:00:40]} 5. Bxd6 {[%emt 0:00:29]} cxd6 {[%emt 0:00:03]} 6. Nc3 {[%emt 0:06:43]} d5 {[%emt 0:02:02]} 7. e3 {[%emt 0:03:20]} O-O {[%emt 0:01:52]} 8. Bd3 {[%emt 0:00:18] The position is equal.} Bb7 {[%emt 0:02:13]} 9. Nd2 {[%emt 0:05:54]} Nc6 {[%emt 0:01:09]} 10. a3 {[%emt 0:02:02]} d6 {[%emt 0:01:12]} 11. g4 {[%emt 0:00:05]} e5 {[%emt 0:05:26]} 12. Nb3 {[%emt 0:12:50]} exd4 {[%emt 0:02:57]} 13. Nxd4 {[%emt 0:00:12]} Nxd4 {[%emt 0:00:26]} 14. exd4 {[%emt 0:00:05]} Re8+ {[%emt 0:01:03]} 15. Ne2 {[%emt 0:14:18]} Ne4 $1 {[%emt 0:05:57]} 16. O-O {[%emt 0:00:07] [#]} Qh4 $1 {[%emt 0:00:47] Strongly threatening ...f5.} 17. Kg2 $1 {[%emt 0:00:13]} Ng5 {[%emt 0:23:26]} (17... h5 $1 $15 18. Ng3 g6) 18. Rh1 $11 {[%emt 0:07:02]} h5 {[%emt 0:17:10]} 19. Nf4 {[%emt 0:07:29]} ({White should try} 19. f4 $11 Ne4 20. Qe1) 19... Ne6 {[%emt 0:06:00]} (19... Re4 $1 $15 20. Bxe4 dxe4) 20. Nxe6 {[%emt 0:04:36]} Rxe6 {[%emt 0:00:58]} 21. Qf3 {[%emt 0:25:52]} Rae8 {[%emt 0:01:01]} 22. Rad1 {[%emt 0:00:00]} Bc8 {[%emt 0:02:10]} 23. Qg3 {[%emt 0:00:00]} Qe7 {[%emt 0:05:28]} 24. g5 {[%emt 0:00:00] White is more active.} ({White should play} 24. gxh5 $14 Rh6 25. Rhe1) 24... g6 {[%emt 0:00:37]} 25. Rhg1 {[%emt 0:00:00]} Kg7 {[%emt 0:02:19]} 26. Kh2 {[%emt 0:00:00]} Qd7 {[%emt 0:01:46]} 27. Rdf1 {[%emt 0:00:00]} Qa4 {[%emt 0:00:59]} 28. Qf4 {[%emt 0:00:00]} Ba6 {[%emt 0:00:37]} 29. b3 {[%emt 0:00:00]} Qa5 {[%emt 0:00:01]} (29... Qxa3 $2 30. Ra1 $18) 30. c4 {[%emt 0:00:00]} dxc4 {[%emt 0:05:33]} (30... Qxa3 $2 {loses.} 31. Ra1 (31. cxd5 Bxd3 32. dxe6 Bf5 $18) 31... Qxb3 32. Rg3 $18 (32. Rxa6 Qxd3 33. Rxa7 Rf8 $15) (32. cxd5 Bxd3 33. dxe6 Rxe6 $14)) 31. bxc4 {[%emt 0:00:00]} Qxa3 $2 {[%emt 0:05:15] [#] This move loses the game for Black.} (31... Qa4 $11 {and Black is okay.}) 32. Rg3 $1 $18 {[%emt 0:00:00]} Qb2 $2 {[%emt 0:00:47]} (32... d5) 33. Rf3 {[%emt 0:00:00]} (33. Rb1 $142 Qc3 34. Bxg6 Qxg3+ 35. Kxg3 Rxg6 36. d5) 33... Rf8 {[%emt 0:00:35]} 34. Rb1 {[%emt 0:00:00][%mdl 1024] White has strong compensation.} Qa2 {[%emt 0:00:07]} (34... Qc3 35. Bf5 (35. Bxg6 Qxf3 36. Qxf3 fxg6 $16) 35... Qxc4) 35. d5 {[%emt 0:00:00]} Ree8 {[%emt 0:00:01]} 36. Qf6+ {[%emt 0:00:00]} Kh7 {[%emt 0:01:17]} 37. Ra1 {[%emt 0:00:00]} (37. Re1 $142 Rxe1 38. Bxg6+ fxg6 39. Qxf8 Rh1+ 40. Kxh1 (40. Kg2 Rg1+ 41. Kxg1 Qa1+ 42. Kg2 Qg7 43. Rf7 Qxf7 44. Qxf7+ Kh8) 40... Qa1+ 41. Kg2 Qg7 42. Rf7 (42. Qxd6 Bc8 $18)) 37... Qd2 {[%emt 0:00:29]} 38. Rxa6 {[%emt 0:00:00] Weighted Error Value: White=0.20 (precise) /Black=0.42.  Loses game:     	---       	Black=1      Mistake:       	White=3     	Black=4      Inaccurate:     	White=2     	Black=2      OK:         	White=8     	Black=11     Best:        	White=2     	Black=2      Strong:       	White=2     	Black=2} 1-0

[Event "3rd Perez Open 2024"]
[Site "Santa Fe"]
[Date "2024.02.24"]
[Round "4.1"]
[White "Felgaer, Ruben"]
[Black "Spata, German"]
[Result "0-1"]
[ECO "B15"]
[WhiteElo "2572"]
[BlackElo "2399"]
[Annotator "TA"]
[PlyCount "63"]
[EventDate "2024.02.18"]
[EventType "swiss"]
[EventCountry "ARG"]
[SourceTitle "playchess.com"]
[Source "ChessBase"]
[SourceQuality "1"]
[TimeControl "5400+30"]

{[%evp 15,63,16,12,16,47,27,33,0,22,35,14,12,10,0,0,0,25,-15,-18,-31,35,23,64,45,65,24,51,30,83,91,93,72,121,125,165,116,180,181,178,94,88,87,100,0,0,0,0,0,0,-22]} 1. e4 {[%emt 0:00:03]} c6 {[%emt 0:06:30]} 2. d4 {[%emt 0:06:37]} d5 {[%emt 0:00:09]} 3. Nc3 {[%emt 0:00:53]} dxe4 {[%emt 0:00:52]} 4. Nxe4 {[%emt 0:00:06]} Nf6 {[%emt 0:00:15]} 5. Nxf6+ {[%emt 0:01:26]} exf6 {[%emt 0:00:03]} 6. c3 {[%emt 0:00:27]} Bd6 {[%emt 0:00:19]} 7. Bd3 {[%emt 0:00:07]} O-O {[%emt 0:00:52]} 8. Ne2 {[%emt 0:00:08]} Re8 {[%emt 0:01:30]} 9. Qc2 {[%emt 0:02:14]} h5 {[%emt 0:00:11]} 10. Be3 {[%emt 0:00:29]} Nd7 {[%emt 0:04:48]} 11. O-O-O {[%emt 0:00:34] White is slightly better.} Nf8 {[%emt 0:00:21]} 12. Kb1 {[%emt 0:00:27]} Be6 {[%emt 0:00:42]} 13. c4 {[%emt 0:08:51]} Rc8 {[%emt 0:00:34]} 14. Nc3 {[%emt 0:02:36]} Bb4 {[%emt 0:00:11]} 15. Ne4 {[%emt 0:10:07]} Be7 {[%emt 0:00:41][%cal Ob7b5]} 16. Nc5 {[%emt 0:05:51]} Bxc5 {[%emt 0:03:46]} 17. dxc5 {[%emt 0:00:06][%cal Od3h7]} Qa5 {[%emt 0:01:31]} (17... Qe7 $15) 18. Qd2 {[%emt 0:05:48]} Qa6 {[%emt 0:02:47]} 19. b3 {[%emt 0:00:33]} Rcd8 {[%emt 0:06:11]} 20. Qc3 {[%emt 0:03:11]} Qa3 {[%emt 0:11:46]} 21. Bc2 {[%emt 0:06:11]} Nd7 {[%emt 0:07:27]} (21... Ng6 $11 {remains equal.}) 22. Qd3 $16 {[%emt 0:05:46]} f5 {[%emt 0:09:00]} 23. Qd4 {[%emt 0:09:01]} Qa5 {[%emt 0:05:59]} (23... f6 $142) 24. Qh4 $1 {[%emt 0:03:49]} b6 {[%emt 0:12:49]} 25. Qg5 {[%emt 0:11:32]} (25. Qxh5 Qb4) (25. h3 $18) 25... b5 {[%emt 0:07:12]} (25... f6 $16 26. Qxh5 Nxc5) 26. cxb5 $18 {[%emt 0:09:22]} (26. Qxh5 bxc4 27. Rd4 Nf6 $19 (27... Nxc5 28. Rh4 $11)) 26... Qxb5 {[%emt 0:00:38]} 27. Bd4 {[%emt 0:04:20]} (27. Qxh5 $6 a5 $16) (27. Bxf5 $2 Bxb3 28. Rd2 (28. Rxd7 Rxd7 29. a3 Bc2+ 30. Ka1 Qb3) (28. axb3 $2 Qxb3+ 29. Kc1 Qc3+ 30. Bc2 Qa3+ 31. Kd2 Qb2 $19) 28... Bxa2+ (28... f6 $2 29. Qf4 $19) 29. Kc1 (29. Kxa2 Rb8) 29... Qc4+ 30. Bc2 Rb8 $19) (27. Rd6 $1 $18) 27... f6 $16 {[%emt 0:01:34]} 28. Qxh5 {[%emt 0:00:36]} Nxc5 {[%emt 0:03:04] [#]} 29. Bxf6 {[%emt 0:03:15] A strong pair of Bishops.} Bf7 $11 {[%emt 0:08:15] Dancing on a razor blade. The position is equal.} 30. Qxf5 {[%emt 0:00:25]} (30. Qg5 Ne6 31. Rxd8 (31. Qxf5 $2 {loses.} Qxf5 32. Bxf5 gxf6 $19) (31. Qg3 $2 f4 $17) 31... Nxg5 32. Rxe8+ Bxe8 $19) 30... Rxd1+ {[%emt 0:01:34]} 31. Rxd1 {[%emt 0:00:01] Qh7+ would kill now.} gxf6 {[%emt 0:00:21]} 32. Rd4 {[%emt 0:01:38][%mdl 32768] Wards off Qb4.   Weighted Error Value: White=0.21 (precise) /Black=0.18 (very precise) .  Mistake:       	White=3     	Black=4      Inaccurate:     	White=2     	Black=4      OK:         	White=6     	Black=7      Best:        	White=1     	Black=5      Strong:       	White=1     	---       . Loss on time!?} 0-1